bitfinex/quotes_SOLUSD_20240811
["timestamp","ask_amount","ask_price","bid_price","bid_amount"]
[1723366682888,6.87836,156.83,156.78,6.3782]
[1723366683063,9.55,156.79,156.78,6.3782]
[1723366683889,9.55,156.79,156.77,22.3255]
[1723366685293,9.55,156.79,156.78,6.3783]
[1723366685476,9.55,156.79,156.77,22.3255]
[1723366685671,9.55,156.79,156.77,15.9468]
[1723366686279,0.12549,156.78,156.72,0.855552]
[1723366686593,9.55,156.75,156.74,6.3799]
[1723366687087,9.55,156.77,156.75,6.3793]
[1723366690581,9.55,156.77,156.73,22.3303]
[1723366690789,9.55,156.75,156.73,22.3303]
[1723366690977,9.55,156.75,156.74,6.3799]
[1723366691766,0.50196,156.83,156.74,6.3799]
[1723366691971,9.55,156.75,156.74,6.3799]
[1723366695100,9.55,156.75,156.73,15.9501]
[1723366695101,9.55,156.75,156.73,22.3304]
[1723366695295,9.55,156.75,156.74,6.3799]
[1723366696694,0.12549,156.8,156.75,6.3792]
[1723366696901,9.55,156.76,156.75,6.3792]
[1723366699208,0.37647,156.8,156.76,6.379]
[1723366699388,9.55,156.76,156.73,15.9501]
[1723366699893,9.55,156.76,156.75,6.3795]
[1723366700410,0.25098,156.8,156.76,6.3791]
[1723366700705,9.55,156.77,156.76,6.3791]
[1723366701585,9.55,156.77,156.76,22.327]
[1723366704711,9.55,156.77,156.76,15.9479]
[1723366706795,9.55,156.77,156.74,6.3799]
[1723366706984,9.55,156.75,156.74,6.3799]
[1723366708284,9.55,156.75,156.73,22.3311]
[1723366709405,9.55,156.8,156.78,6.378]
[1723366710911,6.3759,156.84,156.78,6.378]
[1723366711114,9.55,156.79,156.78,6.378]
[1723366715508,9.55,156.81,156.8,6.3773]
[1723366716415,38.2,156.87,156.8,6.3773]
[1723366716416,9.55,156.82,156.8,6.3773]
[1723366716624,9.55,156.82,156.79,6.3779]
[1723366717322,2.53433424,156.88,156.76,0.12549]
[1723366717518,9.55,156.85,156.83,6.3762]
[1723366717823,9.55,156.85,156.84,6.3759]
[1723366719924,6.3735,156.9,156.84,6.3759]
[1723366720125,9.55,156.87,156.85,6.3753]
[1723366722222,9.55,156.9,156.86,17.21260012]
[1723366722526,9.55,156.9,156.87,6.3746]
[1723366722897,9.55,156.88,156.86,15.9377]
[1723366723994,9.55,156.88,156.84,6.3758]
[1723366724400,9.55,156.85,156.77,9.55]
[1723366724718,9.55,156.84,156.77,9.55]
[1723366725025,9.55,156.84,156.82,15.9409]
[1723366725503,9.55,156.84,156.81,6.377]
[1723366726531,9.55,156.82,156.81,6.377]
[1723366726819,9.55,156.82,156.8,6.3774]
[1723366727206,9.55,156.82,156.78,15.9449]
[1723366727419,9.55,156.8,156.78,15.9449]
[1723366727923,9.55,156.8,156.78,22.3232]
[1723366728223,9.55,156.8,156.76,6.3787]
[1723366728426,9.55,156.77,156.76,6.3787]
[1723366729006,9.55,156.79,156.78,6.3783]
[1723366729524,9.55,156.79,156.74,15.949]
[1723366730201,9.55,156.79,156.76,6.3791]
[1723366730625,9.55,156.77,156.76,6.3791]
[1723366732816,9.55,156.77,156.75,6.3795]
[1723366733024,9.55,156.77,156.74,15.949]
[1723366733205,9.55,156.75,156.74,15.949]
[1723366734728,9.55,156.75,156.74,22.3289]
[1723366736111,9.55,156.76,156.75,6.3795]
[1723366736532,0.12549,156.79,156.74,15.949]
[1723366736731,0.37647,156.79,156.77,6.3784]
[1723366736908,9.67549,156.79,156.77,6.3784]
[1723366737107,9.55,156.79,156.77,6.3784]
[1723366737817,9.55,156.8,156.75,1.2757844]
[1723366738012,9.55,156.8,156.78,6.3783]
[1723366738236,9.55,156.8,156.77,6.3787]
[1723366738403,9.55,156.8,156.77,15.9467]
[1723366738728,9.55,156.78,156.77,15.9467]
[1723366739336,9.55,156.78,156.75,6.3795]
[1723366739910,6.3771,156.81,156.75,6.3795]
[1723366740124,9.55,156.78,156.75,6.3795]
[1723366740324,15.2314,156.84,156.72,0.855552]
[1723366740325,0.12549,156.83,156.77,15.9462]
[1723366740533,9.55,156.79,156.78,6.378]
[1723366740936,9.55,156.81,156.79,6.3778]
[1723366741812,9.55,156.81,156.77,22.3246]
[1723366742016,9.55,156.79,156.77,22.3246]
[1723366743233,9.55,156.79,156.76,6.3791]
[1723366744921,9.55,156.77,156.76,6.3791]
[1723366746229,9.55,156.77,156.74,22.3295]
[1723366747133,9.55,156.75,156.74,22.3295]
[1723366748847,9.55,156.75,156.72,7.236152]
[1723366749047,9.55,156.73,156.72,7.236152]
[1723366749422,0.12549,156.78,156.74,6.3797]
[1723366749620,0.12549,156.78,156.72,0.855552]
[1723366749621,0.37647,156.78,156.75,6.3795]
[1723366749838,9.55,156.76,156.75,6.3795]
[1723366750518,12.8338,156.83,156.74,1.2759052]
[1723366750838,9.55,156.79,156.74,1.2759052]
[1723366751022,9.55,156.79,156.77,6.3787]
[1723366751430,9.55,156.79,156.72,0.855552]
[1723366751431,9.55,156.79,156.76,6.3791]
[1723366751629,9.55,156.77,156.76,15.9479]
[1723366752147,9.55,156.77,156.75,6.3795]
[1723366752943,9.55,156.77,156.76,6.3791]
[1723366753318,0.12549,156.81,156.77,6.3787]
[1723366753542,9.55,156.78,156.77,6.3787]
[1723366754319,9.55,156.78,156.75,15.948]
[1723366754519,9.55,156.78,156.76,6.3791]
[1723366754720,9.55,156.78,156.75,22.3275]
[1723366754942,9.55,156.76,156.75,22.3275]
[1723366756140,9.55,156.76,156.75,15.948]
[1723366756348,9.55,156.76,156.73,6.38]
[1723366757448,9.55,156.76,156.74,6.3798]
[1723366758444,9.55,156.76,156.73,6.3803]
[1723366758645,9.55,156.74,156.73,6.3803]
[1723366759323,0.25098,156.77,156.72,16.807452]
[1723366759542,9.55,156.75,156.74,6.3799]
[1723366760250,9.55,156.75,156.73,6.3803]
[1723366760625,0.25098,156.77,156.74,6.3798]
[1723366760947,9.55,156.75,156.74,6.3798]
[1723366762131,0.25098,156.77,156.74,6.3798]
[1723366762333,9.55,156.75,156.74,6.3798]
[1723366763850,9.55,156.75,156.72,23.188152]
[1723366764057,0.12549,156.77,156.72,16.807452]
[1723366764355,9.55,156.75,156.74,6.3799]
[1723366764547,9.55,156.75,156.73,6.3803]
[1723366765151,0.12549,156.77,156.73,6.3803]
[1723366765453,9.55,156.74,156.73,6.3803]
[1723366767043,9.55,156.74,156.72,16.807452]
[1723366768059,9.55,156.74,156.72,23.188052]
[1723366777864,6.3782,156.79,156.72,16.807452]
[1723366778166,9.55,156.76,156.73,1.27591737]
[1723366778342,9.55,156.76,156.73,6.3803]
[1723366780163,9.55,156.76,156.74,6.3799]
[1723366780564,9.55,156.76,156.72,23.187852]
[1723366780868,9.55,156.74,156.72,16.807452]
[1723366782169,9.55,156.75,156.72,16.807452]
[1723366782558,9.55,156.75,156.72,23.188152]
[1723366782766,0.12549,156.79,156.72,16.807452]
[1723366782943,9.55,156.77,156.73,6.38]
[1723366783143,0.37647,156.79,156.72,23.188052]
[1723366783144,9.55,156.75,156.72,23.188052]
[1723366784165,9.55,156.75,156.73,6.3801]
[1723366784771,9.55,156.75,156.72,16.807452]
[1723366784772,9.55,156.75,156.72,23.188152]
[1723366785179,9.55,156.75,156.72,16.807452]
[1723366786074,9.55,156.75,156.72,23.188052]
[1723366787176,0.25098,156.76,156.73,6.3802]
[1723366787386,9.55,156.76,156.73,6.3802]
[1723366787562,9.67549,156.77,156.74,6.3799]
[1723366787876,9.55,156.77,156.75,6.3795]
[1723366788383,9.55,156.78,156.76,6.3791]
[1723366788594,9.55,156.78,156.75,6.3795]
[1723366789082,9.55,156.76,156.75,15.9488]
[1723366789283,9.55,156.76,156.73,6.38]
[1723366789451,9.55,156.74,156.73,6.38]
[1723366790359,9.55,156.74,156.72,16.774652]
[1723366790360,9.55,156.74,156.72,7.236252]
[1723366791852,9.55,156.75,156.74,6.3799]
[1723366792782,9.55,156.75,156.73,6.3803]
[1723366793174,9.55,156.75,156.74,6.3799]
[1723366794571,0.12549,156.79,156.74,6.3799]
[1723366794572,9.55,156.77,156.75,6.3794]
[1723366795082,21.8344,156.76,156.72,0.855552]
[1723366795280,21.8344,156.76,156.63,15.9191]
[1723366795281,6.50649,156.72,156.63,15.9191]
[1723366795462,9.55,156.68,156.63,15.9191]
[1723366796284,9.55,156.68,156.67,6.3827]
[1723366796462,9.55,156.7,156.64,1.27644316]
[1723366796667,9.55,156.7,156.65,1.27636612]
[1723366797669,9.55,156.7,156.69,6.382]
[1723366799392,9.55,156.7,156.68,6.3823]
[1723366799764,9.55,156.7,156.69,6.382]
[1723366800685,9.55,156.72,156.71,6.3812]
[1723366800884,9.55,156.72,156.7,15.9539]
[1723366800885,27.9960397,156.8,156.7,15.9539]
[1723366801061,9.55,156.74,156.71,6.3811]
[1723366801490,9.55,156.74,156.72,6.3807]
[1723366801705,9.55,156.74,156.73,6.3803]
[1723366802373,9.55,156.74,156.72,6.3807]
[1723366804095,9.55,156.74,156.71,6.3811]
[1723366804282,9.55,156.72,156.71,6.3811]
[1723366804478,9.55,156.72,156.66,15.9572]
[1723366804869,9.55,156.72,156.69,6.3818]
[1723366805076,9.55,156.7,156.69,6.3818]
[1723366806393,9.55,156.72,156.7,6.3814]
[1723366806594,9.55,156.72,156.71,6.3812]
[1723366806795,9.55,156.73,156.71,15.9529]
[1723366807666,9.55,156.73,156.71,22.334]
[1723366807866,14.42368975,156.82,156.74,15.9499]
[1723366808075,9.55,156.79,156.77,6.3787]
[1723366808277,9.55,156.79,156.77,15.9465]
[1723366808599,9.55,156.79,156.73,15.95]
[1723366808799,9.55,156.74,156.7,6.3812]
[1723366808971,9.55,156.71,156.7,6.3812]
[1723366810376,9.55,156.71,156.69,22.3361]
[1723366810897,9.55,156.71,156.7,6.3816]
[1723366811274,9.67549,156.71,156.69,15.9542]
[1723366811488,9.67549,156.71,156.69,22.3359]
[1723366812193,9.67549,156.71,156.7,6.3816]
[1723366812419,9.55,156.71,156.7,6.3816]
[1723366812880,9.67549,156.71,156.7,6.3816]
[1723366813701,9.80098,156.71,156.69,22.3361]
[1723366814708,9.80098,156.71,156.7,6.3816]
[1723366814997,9.67549,156.71,156.7,6.3816]
[1723366815197,9.55,156.71,156.7,6.3816]
[1723366816101,9.55,156.73,156.72,6.3806]
[1723366816274,9.55,156.73,156.71,6.3811]
[1723366816481,9.55,156.73,156.72,6.3808]
[1723366816792,9.55,156.73,156.71,6.3811]
[1723366818291,12.4371,156.77,156.72,6.3808]
[1723366818492,9.55,156.73,156.72,6.3808]
[1723366819790,9.55,156.73,156.69,15.9542]
[1723366820798,9.55,156.73,156.7,6.3815]
[1723366821921,9.55,156.71,156.69,22.3362]
[1723366822204,9.55,156.71,156.69,15.9542]
[1723366823209,9.55,156.71,156.66,6.3828]
[1723366823386,9.55,156.69,156.67,6.3828]
[1723366823800,0.25098,156.72,156.63,22.9405]
[1723366823801,9.55,156.71,156.63,24.21694969]
[1723366824013,9.55,156.71,156.64,10.82644969]
[1723366824312,9.55,156.71,156.7,6.3816]
[1723366825584,9.55,156.71,156.69,6.3819]
[1723366830411,9.55,156.71,156.68,15.956]
[1723366831120,9.55,156.71,156.68,22.3383]
[1723366831315,9.67549,156.69,156.65,15.959]
[1723366831494,9.55,156.66,156.65,15.959]
[1723366831811,9.55,156.66,156.59,16.5649]
[1723366831812,9.67549,156.66,156.59,16.5649]
[1723366832119,9.55,156.61,156.58,22.3513]
[1723366832287,6.0668,156.64,156.58,15.9652]
[1723366832611,9.55,156.6,156.59,6.3857]
[1723366833014,9.55,156.6,156.58,15.9652]
[1723366833187,2.59734427,156.67,156.58,15.9652]
[1723366833390,9.55,156.64,156.63,6.3844]
[1723366833699,0.12549,156.66,156.63,6.3844]
[1723366833919,19.24,156.67,156.64,6.3838]
[1723366834299,19.24,156.65,156.61,15.9629]
[1723366834819,19.24,156.65,156.63,6.384]
[1723366837437,19.36549,156.67,156.63,6.384]
[1723366837610,0.37647,156.66,156.63,6.384]
[1723366838609,19.24,156.67,156.63,6.384]
[1723366838901,19.24,156.67,156.61,15.9629]
[1723366838902,19.24,156.67,156.64,6.384]
[1723366839223,19.24,156.67,156.65,6.3833]
[1723366839419,19.24,156.69,156.59,1.40206937]
[1723366839623,19.24,156.69,156.59,66.40206937]
[1723366839807,19.24,156.69,156.66,6.3831]
[1723366840818,19.24,156.71,156.61,0.12549]
[1723366841017,19.24,156.71,156.61,20.76736348]
[1723366841327,19.24,156.73,156.68,6.3824]
[1723366843031,25.6204,156.73,156.68,6.3824]
[1723366843212,19.24,156.71,156.67,22.3395]
[1723366843414,19.24,156.71,156.68,6.3821]
[1723366844724,19.24,156.71,156.67,15.9567]
[1723366845109,19.24,156.71,156.68,6.382]
[1723366846027,19.24,156.73,156.67,15.9567]
[1723366846222,6.3796,156.75,156.71,6.3808]
[1723366846223,19.24,156.75,156.71,6.3808]
[1723366846535,19.24,156.75,156.72,7.65675905]
[1723366846751,19.24,156.75,156.7,22.3352]
[1723366847033,19.24,156.75,156.7,15.9539]
[1723366847408,19.24,156.75,156.7,22.3353]
[1723366848543,19.24,156.75,156.71,6.381]
[1723366849113,25.6196,156.75,156.7,15.9539]
[1723366849313,19.24,156.75,156.7,22.3352]
[1723366849544,19.24,156.75,156.71,6.3811]
[1723366850238,19.24,156.75,156.7,22.3354]
[1723366850413,19.24,156.75,156.71,6.3809]
[1723366850722,19.24,156.75,156.7,15.9539]
[1723366850723,25.6197,156.75,156.7,15.9539]
[1723366850924,19.24,156.75,156.72,6.3807]
[1723366851634,19.24,156.75,156.7,15.9539]
[1723366852937,6.63018,156.76,156.71,6.3811]
[1723366853137,0.25098,156.75,156.71,6.3811]
[1723366853437,19.24,156.74,156.71,6.3811]
[1723366853635,19.24,156.74,156.72,6.3805]
[1723366854520,19.24,156.74,156.7,22.3353]
[1723366855032,19.24,156.74,156.7,15.9539]
[1723366855235,19.24,156.72,156.7,15.9539]
[1723366855535,19.24,156.72,156.7,22.3353]
[1723366855746,19.24,156.72,156.7,15.9539]
[1723366856620,19.24,156.72,156.68,6.3823]
[1723366856827,19.24,156.7,156.68,6.3823]
[1723366860111,19.24,156.7,156.69,6.382]
[1723366860317,0.12549,156.74,156.69,15.954]
[1723366860545,19.24,156.73,156.72,6.3808]
[1723366860726,19.24,156.73,156.71,6.3811]
[1723366861040,19.24,156.74,156.71,6.3811]
[1723366861647,19.24,156.74,156.69,22.3356]
[1723366861948,19.24,156.74,156.7,6.3815]
[1723366862929,6.63058,156.75,156.7,6.3815]
[1723366863139,19.24,156.73,156.7,6.3815]
[1723366864975,19.24,156.73,156.69,15.954]
[1723366865327,0.12549,156.72,156.69,15.954]
[1723366865829,9.61,156.7,156.69,15.954]
[1723366866334,9.61,156.7,156.69,22.336]
[1723366867054,9.61,156.72,156.7,6.3815]
[1723366867259,30.0,156.71,156.7,6.3815]
[1723366872136,30.0,156.71,156.7,51.3815]
[1723366872735,30.0,156.71,156.7,6.3815]
[1723366873262,10.99333487,156.81,156.73,6.38]
[1723366873559,30.0,156.74,156.73,6.38]
[1723366874631,30.0,156.74,156.72,15.9513]
[1723366874953,30.0,156.74,156.72,22.332]
[1723366876155,30.0,156.74,156.73,6.3803]
[1723366877050,30.0,156.74,156.72,22.332]
[1723366877252,0.12549,156.72,156.64,15.0125]
[1723366877431,9.61,156.7,156.64,15.0125]
[1723366877631,9.61,156.7,156.68,6.3824]
[1723366877826,30.25098,156.72,156.68,6.3824]
[1723366878061,9.61,156.7,156.69,6.382]
[1723366878258,39.61,156.72,156.7,6.3815]
[1723366878463,39.61,156.72,156.71,6.3812]
[1723366878755,30.0,156.72,156.71,6.3812]
[1723366881154,9.61,156.74,156.73,6.3803]
[1723366884168,39.61,156.74,156.73,6.3803]
[1723366884343,9.61,156.74,156.73,6.3803]
[1723366884852,9.61,156.76,156.74,15.9498]
[1723366885178,22.107,156.79,156.74,15.9498]
[1723366885179,2.61139299,156.82,156.74,15.9498]
[1723366885351,9.61,156.79,156.75,6.3792]
[1723366885555,9.61,156.79,156.76,6.3789]
[1723366888470,9.61,156.77,156.7,15.158]
[1723366888660,9.61,156.75,156.7,15.158]
[1723366888968,9.61,156.77,156.75,6.3795]
[1723366889170,0.12549,156.82,156.76,6.3788]
[1723366889472,9.61,156.79,156.76,6.3788]
[1723366891149,9.61,156.79,156.72,0.12549]
[1723366891369,9.61,156.79,156.72,46.4010487]
[1723366891548,9.61,156.79,156.78,6.3783]
[1723366891752,39.61,156.79,156.78,6.3783]
[1723366891957,30.0,156.79,156.78,6.3783]
[1723366892157,9.61,156.81,156.8,6.3775]
[1723366892365,9.61,156.81,156.78,6.378]
[1723366892553,9.61,156.81,156.79,6.3779]
[1723366893654,9.61,156.81,156.8,6.3775]
[1723366894556,9.61,156.83,156.81,6.377]
[1723366894950,9.61,156.83,156.8,6.3775]
[1723366895354,9.61,156.83,156.81,6.377]
[1723366895560,9.61,156.85,156.82,6.3767]
[1723366895764,15.7709,156.9,156.83,1.27511587]
[1723366895961,9.61,156.88,156.85,6.3754]
[1723366896569,9.61,156.86,156.82,6.3767]
[1723366896768,9.61,156.84,156.79,15.158]
[1723366896963,9.61,156.82,156.79,15.158]
[1723366897674,9.61,156.82,156.79,21.5358]
[1723366897975,9.61,156.82,156.8,6.3775]
[1723366899651,38.44,156.87,156.8,6.3775]
[1723366899882,9.61,156.83,156.81,6.3769]
[1723366900676,9.61,156.85,156.82,6.3767]
[1723366901169,9.61,156.83,156.79,15.158]
[1723366902874,9.61,156.83,156.81,6.3771]
[1723366907685,0.12549,156.85,156.81,6.3771]
[1723366907982,9.61,156.83,156.81,6.3771]
[1723366908997,9.61,156.83,156.82,6.3767]
[1723366910891,9.61,156.85,156.83,6.3761]
[1723366911192,9.61,156.87,156.85,6.3755]
[1723366911367,9.61,156.87,156.84,6.3758]
[1723366911682,6.3735,156.9,156.85,6.3754]
[1723366911885,9.61,156.88,156.85,6.3754]
[1723366912386,9.61,156.9,156.81,9.61]
[1723366912692,9.61,156.9,156.87,6.3747]
[1723366912985,9.61,156.9,156.85,6.3751]
[1723366913167,9.61,156.9,156.86,6.375]
[1723366913489,12.494,156.92,156.86,6.375]
[1723366913660,9.61,156.9,156.82,45.0]
[1723366913865,9.61,156.92,156.89,6.3738]
[1723366914184,9.61,156.92,156.88,6.3742]
[1723366914885,9.61,156.9,156.87,6.3746]
[1723366916759,9.61,156.9,156.86,6.3749]
[1723366916965,9.61,156.88,156.86,6.3749]
[1723366918387,9.61,156.88,156.85,6.3754]
[1723366918896,9.61,156.86,156.77,15.3574]
[1723366919098,9.61,156.83,156.77,15.3574]
[1723366919761,9.61,156.83,156.81,6.3769]
[1723366920191,9.61,156.83,156.77,15.3574]
[1723366920468,0.25098,156.82,156.77,15.3574]
[1723366920796,9.61,156.81,156.8,6.3775]
[1723366922095,9.61,156.81,156.79,6.3779]
[1723366922388,9.61,156.81,156.8,6.3775]
[1723366922788,6.3747,156.87,156.81,6.377]
[1723366923091,9.61,156.84,156.81,6.377]
[1723366923286,9.61,156.84,156.82,6.3766]
[1723366924170,9.61,156.84,156.8,6.3771]
[1723366924497,9.61,156.82,156.78,6.3779]
[1723366924875,9.61,156.8,156.78,6.3779]
[1723366925182,9.61,156.8,156.79,6.3779]
[1723366926383,9.61,156.82,156.8,6.3775]
[1723366927000,9.61,156.82,156.79,6.3779]
[1723366927772,19.2,156.82,156.79,6.3779]
[1723366927988,19.2,156.82,156.8,6.3775]
[1723366929810,0.12549,156.85,156.81,6.3771]
[1723366929811,19.2,156.84,156.81,6.3771]
[1723366929980,19.2,156.84,156.77,15.3574]
[1723366929981,19.2,156.84,156.8,6.3775]
[1723366930782,19.2,156.84,156.81,6.377]
[1723366931797,6.3747,156.87,156.77,16.63261447]
[1723366931798,19.2,156.87,156.77,16.63261447]
[1723366932110,0.25098,156.86,156.78,45.0]
[1723366932476,0.25098,156.86,156.79,1.275214]
[1723366932803,0.12549,156.86,156.83,6.3762]
[1723366933102,19.2,156.87,156.83,6.3762]
[1723366934088,19.2,156.87,156.78,45.0]
[1723366935278,19.2,156.85,156.82,6.3766]
[1723366935702,0.12549,156.88,156.77,15.3574]
[1723366935703,19.2,156.83,156.77,15.3574]
[1723366935910,19.2,156.81,156.77,15.3574]
[1723366936077,19.2,156.79,156.73,15.3432]
[1723366936890,19.2,156.77,156.73,21.7234]
[1723366937085,19.2,156.77,156.74,6.3799]
[1723366937498,19.2,156.75,156.73,6.3803]
[1723366937675,19.2,156.75,156.68,15.3432]
[1723366938275,19.2,156.73,156.67,0.07914895]
[1723366938513,19.2,156.71,156.69,6.382]
[1723366939011,6.38,156.74,156.69,6.382]
[1723366939186,19.2,156.7,156.69,22.3362]
[1723366939592,0.12549,156.73,156.7,6.3814]
[1723366939797,19.2,156.72,156.71,6.3811]
[1723366940108,19.2,156.72,156.7,6.3816]
[1723366940310,19.2,156.72,156.69,22.3362]
[1723366940606,19.2,156.72,156.7,6.3815]
[1723366943992,19.2,156.72,156.71,6.3812]
[1723366944398,19.2,156.72,156.69,22.3358]
[1723366944585,19.2,156.7,156.69,15.9542]
[1723366945777,19.2,156.7,156.69,22.3362]
[1723366946206,19.2,156.72,156.7,6.3814]
[1723366947292,0.12549,156.75,156.69,15.9542]
[1723366947293,6.3786,156.78,156.71,6.3812]
[1723366947493,19.2,156.74,156.72,6.3807]
[1723366948687,6.0799,156.83,156.73,6.3801]
[1723366948688,0.12549,156.8,156.73,6.3801]
[1723366948891,19.2,156.75,156.73,6.3801]
[1723366949193,19.2,156.75,156.72,6.3807]
[1723366949917,25.5787,156.78,156.72,15.9515]
[1723366949918,19.2,156.73,156.72,15.9515]
[1723366950597,19.2,156.73,156.72,22.3323]
[1723366951706,19.2,156.73,156.68,15.9553]
[1723366952100,19.2,156.75,156.71,15.9525]
[1723366954523,19.2,156.75,156.73,6.3803]
[1723366954817,19.2,156.77,156.74,6.3799]
[1723366955603,19.2,156.77,156.75,6.3795]
[1723366955805,9.61,156.76,156.75,6.3795]
[1723366956013,9.61,156.76,156.74,6.3799]
[1723366957615,9.61,156.76,156.75,6.3795]
[1723366958023,9.61,156.78,156.77,6.3785]
[1723366958204,9.61,156.78,156.7,9.61]
[1723366958521,9.61,156.76,156.71,45.0]
[1723366958695,9.61,156.76,156.7,45.0]
[1723366959613,9.61,156.76,156.74,6.3799]
[1723366961919,9.61,156.76,156.73,6.3803]
[1723366962300,9.61,156.76,156.7,45.0]
[1723366962301,9.61,156.76,156.74,6.3799]
[1723366963232,9.61,156.76,156.75,6.3795]
[1723366963914,9.61,156.76,156.7,45.0]
[1723366965224,9.61,156.74,156.69,16.336]
[1723366965406,9.61,156.72,156.69,16.336]
[1723366965602,9.61,156.75,156.74,6.3799]
[1723366966801,9.61,156.75,156.74,22.3298]
[1723366968823,9.61,156.75,156.69,16.336]
[1723366969031,6.379,156.77,156.69,16.336]
[1723366969032,9.61,156.73,156.69,16.336]
[1723366969219,9.61,156.73,156.71,6.3811]
[1723366969724,9.61,156.75,156.7,16.03224895]
[1723366969924,9.61,156.75,156.72,15.951]
[1723366970316,9.61,156.75,156.73,6.3803]
[1723366976931,9.61,156.75,156.72,15.951]
[1723366977140,9.61,156.73,156.72,15.951]
[1723366977645,9.61,156.73,156.72,22.3318]
[1723366978441,9.61,156.75,156.74,6.3796]
[1723366979007,6.3779,156.8,156.74,6.3796]
[1723366979218,9.61,156.75,156.74,6.3796]
[1723366984539,9.61,156.75,156.72,22.3314]
[1723366985630,9.61,156.75,156.73,6.3803]
[1723366988038,9.61,156.75,156.72,15.951]
[1723366988039,9.61,156.75,156.74,6.3798]
[1723366988545,9.61,156.77,156.76,6.3791]
[1723366990329,9.61,156.77,156.75,6.3795]
[1723366991418,9.61,156.77,156.76,6.3791]
[1723366991633,9.61,156.78,156.71,6.72699]
[1723366991856,9.61,156.78,156.77,6.3784]
[1723366993939,21.5225,156.82,156.77,6.3784]
[1723366994251,9.61,156.79,156.78,7.65369319]
[1723366994419,9.61,156.81,156.79,6.3778]
[1723366995657,23.53842051,156.86,156.8,6.3771]
[1723366995825,9.61,156.83,156.76,0.12549]
[1723366996026,9.61,156.83,156.81,6.3771]
[1723366996526,9.61,156.83,156.79,6.3776]
[1723366996724,6.3759,156.84,156.75,15.9803]
[1723366996725,9.61,156.81,156.75,15.9803]
[1723366996950,9.61,156.81,156.78,6.3783]
[1723366997125,9.61,156.81,156.75,15.9803]
[1723366997126,9.61,156.81,156.79,6.3777]
[1723366997453,9.61,156.81,156.8,6.3775]
[1723366997843,9.61,156.81,156.78,6.3781]
[1723366998846,9.61,156.81,156.79,6.3779]
[1723367000553,9.61,156.81,156.8,6.3775]
[1723367001054,9.61,156.83,156.76,1.27541155]
[1723367001222,9.61,156.83,156.76,45.12549]
[1723367001627,9.61,156.83,156.77,1.27527131]
[1723367001859,9.61,156.83,156.82,6.3767]
[1723367002232,9.61,156.83,156.77,1.27527131]
[1723367002233,9.61,156.85,156.84,6.3759]